[Event "*** SCC Grand Prix: Titled Tuesday Blitz"]
[Site "Chess.com"]
[Date "2020.06.23"]
[Round "3"]
[White "Squirlolz"]
[Black "leoduarte"]
[Result "1-0"]
[WhiteElo "2504"]
[BlackElo "2277"]
[TimeControl "180+1"]
[EndTime "10:28:56 PDT"]
[Termination "Squirlolz won by resignation"]

1. b3 {[%clk 0:03:00.9]} 1... d6 {[%clk 0:02:41.6]} 2. Bb2 {[%clk 0:03:01.8]}
2... e5 {[%clk 0:02:41.6]} 3. e3 {[%clk 0:03:01.3]} 3... g6 {[%clk 0:02:41.3]}
4. f4 {[%clk 0:03:01.2]} 4... Bg7 {[%clk 0:02:39.6]} 5. Nf3 {[%clk 0:03:01.5]}
5... Nc6 {[%clk 0:02:37]} 6. Bb5 {[%clk 0:03:01.3]} 6... f6 {[%clk 0:02:18.7]}
7. O-O {[%clk 0:03:01]} 7... Ne7 {[%clk 0:02:17.5]} 8. Nc3 {[%clk 0:03:00]} 8...
a6 {[%clk 0:02:14.7]} 9. Be2 {[%clk 0:02:56.4]} 9... O-O {[%clk 0:02:09]} 10.
Qe1 {[%clk 0:02:55.9]} 10... Be6 {[%clk 0:02:06.6]} 11. Rd1 {[%clk 0:02:49.6]}
11... d5 {[%clk 0:01:59.9]} 12. fxe5 {[%clk 0:02:42.9]} 12... Nxe5 {[%clk
0:01:51.7]} 13. h3 {[%clk 0:02:15.3]} 13... Nxf3+ {[%clk 0:01:23.3]} 14. Bxf3
{[%clk 0:02:14.8]} 14... f5 {[%clk 0:01:22.2]} 15. Qg3 {[%clk 0:02:06.6]} 15...
c6 {[%clk 0:01:15.8]} 16. Na4 {[%clk 0:02:06.4]} 16... Bxb2 {[%clk 0:01:14.2]}
17. Nxb2 {[%clk 0:02:07.3]} 17... Qd7 {[%clk 0:01:01.2]} 18. Nd3 {[%clk
0:02:07]} 18... Nc8 {[%clk 0:00:57]} 19. Ne5 {[%clk 0:01:34.9]} 19... Qg7 {[%clk
0:00:55.1]} 20. c4 {[%clk 0:01:30.3]} 20... Ne7 {[%clk 0:00:50.7]} 21. d4 {[%clk
0:01:24]} 21... dxc4 {[%clk 0:00:46.9]} 22. bxc4 {[%clk 0:01:22.2]} 22... Rad8
{[%clk 0:00:46.1]} 23. Rb1 {[%clk 0:01:17.1]} 23... Bc8 {[%clk 0:00:41.5]} 24.
Be2 {[%clk 0:00:56]} 24... Kh8 {[%clk 0:00:24.7]} 25. c5 {[%clk 0:00:47.4]}
25... Nd5 {[%clk 0:00:19.8]} 26. Bc4 {[%clk 0:00:48]} 26... Nc3 {[%clk
0:00:18.1]} 27. Rb2 {[%clk 0:00:37.6]} 27... Ne4 {[%clk 0:00:17.9]} 28. Qh4
{[%clk 0:00:38.1]} 28... g5 {[%clk 0:00:13.9]} 29. Qh5 {[%clk 0:00:34.9]} 29...
Nf6 {[%clk 0:00:13.5]} 30. Nf7+ {[%clk 0:00:30.7]} 30... Kg8 {[%clk 0:00:10.6]}
31. Nxd8+ {[%clk 0:00:29.8]} 31... Kh8 {[%clk 0:00:08.7]} 32. Nf7+ {[%clk
0:00:27.9]} 32... Kg8 {[%clk 0:00:08.2]} 33. Nxg5+ {[%clk 0:00:24.1]} 33... Kh8
{[%clk 0:00:08.1]} 34. Nf7+ {[%clk 0:00:21.7]} 34... Kg8 {[%clk 0:00:07.9]} 35.
Ne5+ {[%clk 0:00:20.5]} 35... Kh8 {[%clk 0:00:07.6]} 36. Qh4 {[%clk 0:00:19.1]}
36... Ne4 {[%clk 0:00:06.9]} 37. Nf7+ {[%clk 0:00:14.4]} 37... Rxf7 {[%clk
0:00:06]} 38. Bxf7 {[%clk 0:00:15.3]} 1-0

[Event "*** SCC Grand Prix: Titled Tuesday Blitz"]
[Site "Chess.com"]
[Date "2020.06.23"]
[Round "3"]
[White "gumimis"]
[Black "AsaHoffmann"]
[Result "1-0"]
[WhiteElo "2148"]
[BlackElo "2328"]
[TimeControl "180+1"]
[EndTime "10:28:57 PDT"]
[Termination "gumimis won by resignation"]

1. e4 {[%clk 0:03:00.8]} 1... d6 {[%clk 0:02:58.8]} 2. d4 {[%clk 0:03:00.5]}
2... Nf6 {[%clk 0:02:57.8]} 3. Nc3 {[%clk 0:03:00.1]} 3... c6 {[%clk 0:02:57.4]}
4. f4 {[%clk 0:02:53]} 4... Qa5 {[%clk 0:02:56]} 5. e5 {[%clk 0:02:42.7]} 5...
Nd5 {[%clk 0:02:53.7]} 6. Nf3 {[%clk 0:02:31.5]} 6... Bg4 {[%clk 0:02:52.7]} 7.
Bd2 {[%clk 0:02:22.3]} 7... e6 {[%clk 0:02:43]} 8. Bd3 {[%clk 0:02:08.4]} 8...
Qc7 {[%clk 0:02:37]} 9. Ne4 {[%clk 0:02:02.2]} 9... Nd7 {[%clk 0:02:33.6]} 10.
exd6 {[%clk 0:01:59.6]} 10... Bxd6 {[%clk 0:02:32.3]} 11. Nxd6+ {[%clk 0:02:00]}
11... Qxd6 {[%clk 0:02:31.8]} 12. h3 {[%clk 0:01:54.5]} 12... Bxf3 {[%clk
0:02:31]} 13. Qxf3 {[%clk 0:01:54]} 13... N7f6 {[%clk 0:02:30.3]} 14. O-O-O
{[%clk 0:01:50.7]} 14... O-O-O {[%clk 0:02:28.4]} 15. a3 {[%clk 0:01:43.1]}
15... g6 {[%clk 0:02:26.6]} 16. c4 {[%clk 0:01:40.7]} 16... Nc7 {[%clk
0:02:24.8]} 17. Bc3 {[%clk 0:01:40.8]} 17... Nd7 {[%clk 0:02:15.8]} 18. d5
{[%clk 0:01:33.4]} 18... cxd5 {[%clk 0:02:06]} 19. Bxh8 {[%clk 0:01:32.7]} 19...
Rxh8 {[%clk 0:02:05.3]} 20. cxd5 {[%clk 0:01:32.3]} 20... Nxd5 {[%clk
0:02:04.6]} 21. Be4 {[%clk 0:01:20.6]} 21... N7b6 {[%clk 0:02:02.2]} 22. g3
{[%clk 0:01:11.1]} 22... Rd8 {[%clk 0:01:59.7]} 23. Kb1 {[%clk 0:01:08.9]} 23...
Kb8 {[%clk 0:01:58.9]} 24. Ka1 {[%clk 0:01:08.2]} 24... f5 {[%clk 0:01:49.2]}
25. Bb1 {[%clk 0:00:59.5]} 25... Nc4 {[%clk 0:01:41.2]} 26. Rhe1 {[%clk
0:00:44.4]} 26... Qb6 {[%clk 0:01:36.8]} 27. Qe2 {[%clk 0:00:26.6]} 27... Rc8
{[%clk 0:01:27.7]} 28. Ba2 {[%clk 0:00:20.9]} 28... Nce3 {[%clk 0:01:23.1]} 29.
Rc1 {[%clk 0:00:20.7]} 29... Re8 {[%clk 0:01:11.4]} 30. Bxd5 {[%clk 0:00:10.5]}
30... Nxd5 {[%clk 0:01:10.5]} 31. Qe5+ {[%clk 0:00:10.7]} 31... Ka8 {[%clk
0:01:09.2]} 32. Rc2 {[%clk 0:00:10.3]} 32... a6 {[%clk 0:01:08.7]} 33. Rec1
{[%clk 0:00:10.4]} 33... Ka7 {[%clk 0:01:07.4]} 34. Ka2 {[%clk 0:00:07.8]} 34...
Qa5 {[%clk 0:01:05.9]} 35. Qd4+ {[%clk 0:00:07.4]} 35... Nb6 {[%clk 0:00:55.6]}
36. Rc5 {[%clk 0:00:06.4]} 36... Qa4 {[%clk 0:00:48.2]} 37. Qxa4 {[%clk
0:00:06.8]} 37... Nxa4 {[%clk 0:00:47.6]} 38. Rc8 {[%clk 0:00:07.7]} 38... Re7
{[%clk 0:00:46.8]} 39. R1c7 {[%clk 0:00:07.5]} 39... Rxc7 {[%clk 0:00:43.8]} 40.
Rxc7 {[%clk 0:00:08.4]} 40... Nb6 {[%clk 0:00:43.4]} 41. Rxh7 {[%clk 0:00:08.7]}
41... Nd5 {[%clk 0:00:42.9]} 42. Rg7 {[%clk 0:00:08.2]} 42... g5 {[%clk
0:00:39.2]} 43. Rxg5 {[%clk 0:00:07.9]} 43... Ne3 {[%clk 0:00:37.6]} 44. Rg6
{[%clk 0:00:07.4]} 44... e5 {[%clk 0:00:36.8]} 45. fxe5 {[%clk 0:00:07.4]} 1-0

[Event "*** SCC Grand Prix: Titled Tuesday Blitz"]
[Site "Chess.com"]
[Date "2020.06.23"]
[Round "3"]
[White "RusPakhom"]
[Black "letsgoband"]
[Result "0-1"]
[WhiteElo "2365"]
[BlackElo "2556"]
[TimeControl "180+1"]
[EndTime "10:28:58 PDT"]
[Termination "letsgoband won by resignation"]

1. e4 {[%clk 0:03:00.9]} 1... e5 {[%clk 0:02:58.6]} 2. Nf3 {[%clk 0:03:00.6]}
2... Nc6 {[%clk 0:02:59]} 3. Bc4 {[%clk 0:03:01.1]} 3... Nf6 {[%clk 0:02:58.7]}
4. Ng5 {[%clk 0:03:01.4]} 4... d5 {[%clk 0:02:59.1]} 5. exd5 {[%clk 0:03:02]}
5... Na5 {[%clk 0:02:59.7]} 6. Bb5+ {[%clk 0:03:02.5]} 6... c6 {[%clk
0:03:00.4]} 7. dxc6 {[%clk 0:03:02.8]} 7... bxc6 {[%clk 0:03:01.3]} 8. Qf3
{[%clk 0:03:02.9]} 8... Rb8 {[%clk 0:02:47.6]} 9. Bd3 {[%clk 0:03:02.9]} 9... h6
{[%clk 0:02:38.4]} 10. Ne4 {[%clk 0:03:02.5]} 10... Nxe4 {[%clk 0:02:36]} 11.
Bxe4 {[%clk 0:02:56.6]} 11... Qc7 {[%clk 0:02:29.7]} 12. d3 {[%clk 0:02:53.4]}
12... Bd6 {[%clk 0:02:14.8]} 13. Nc3 {[%clk 0:02:49.2]} 13... f5 {[%clk
0:02:01.2]} 14. Qh5+ {[%clk 0:02:40.7]} 14... Qf7 {[%clk 0:01:59.4]} 15. Qxf7+
{[%clk 0:02:37.5]} 15... Kxf7 {[%clk 0:02:00.3]} 16. Bf3 {[%clk 0:02:37.9]}
16... Be6 {[%clk 0:01:24.2]} 17. a3 {[%clk 0:02:35.9]} 17... c5 {[%clk
0:01:21.8]} 18. O-O {[%clk 0:02:33.9]} 18... Rhc8 {[%clk 0:01:17.8]} 19. b3
{[%clk 0:02:31.9]} 19... Nc6 {[%clk 0:01:10.7]} 20. Bxc6 {[%clk 0:02:17.5]}
20... Rxc6 {[%clk 0:01:11.6]} 21. Re1 {[%clk 0:02:16.9]} 21... Re8 {[%clk
0:00:48.8]} 22. Bb2 {[%clk 0:02:13.9]} 22... Bb8 {[%clk 0:00:48.5]} 23. Nd1
{[%clk 0:01:29.6]} 23... Bd7 {[%clk 0:00:48.3]} 24. Ne3 {[%clk 0:01:29.4]} 24...
g6 {[%clk 0:00:45]} 25. Nc4 {[%clk 0:01:28.5]} 25... Rce6 {[%clk 0:00:43.9]} 26.
a4 {[%clk 0:01:00.8]} 26... Bc6 {[%clk 0:00:44]} 27. f3 {[%clk 0:00:58.9]} 27...
e4 {[%clk 0:00:39.2]} 28. fxe4 {[%clk 0:00:56.3]} 28... fxe4 {[%clk 0:00:39.5]}
29. Rf1+ {[%clk 0:00:54.4]} 29... Kg8 {[%clk 0:00:39.8]} 30. dxe4 {[%clk
0:00:22.9]} 30... Bxe4 {[%clk 0:00:32.4]} 31. Rad1 {[%clk 0:00:22.5]} 31... Bxc2
{[%clk 0:00:24.8]} 32. Rd7 {[%clk 0:00:22.8]} 32... R6e7 {[%clk 0:00:25.2]} 33.
Rxe7 {[%clk 0:00:19.3]} 33... Rxe7 {[%clk 0:00:26.1]} 34. Bf6 {[%clk 0:00:19.5]}
34... Rf7 {[%clk 0:00:20.7]} 35. Ne5 {[%clk 0:00:14.6]} 35... Rxf6 {[%clk
0:00:18.7]} 36. Rxf6 {[%clk 0:00:13.8]} 36... Bxe5 {[%clk 0:00:19.3]} 37. Rxg6+
{[%clk 0:00:14.3]} 37... Bxg6 {[%clk 0:00:19.3]} 0-1

[Event "*** SCC Grand Prix: Titled Tuesday Blitz"]
[Site "Chess.com"]
[Date "2020.06.23"]
[Round "3"]
[White "Rakhmanov_Aleksandr"]
[Black "Kavyev_Ruslan"]
[Result "0-1"]
[WhiteElo "2777"]
[BlackElo "2554"]
[TimeControl "180+1"]
[EndTime "10:28:59 PDT"]
[Termination "Kavyev_Ruslan won on time"]

1. Nf3 {[%clk 0:03:00.9]} 1... Nf6 {[%clk 0:03:00]} 2. g3 {[%clk 0:03:01.8]}
2... g6 {[%clk 0:03:00.4]} 3. Bg2 {[%clk 0:03:02]} 3... Bg7 {[%clk 0:03:01.1]}
4. O-O {[%clk 0:03:02.5]} 4... O-O {[%clk 0:03:01.1]} 5. d4 {[%clk 0:03:03.4]}
5... d5 {[%clk 0:03:01.1]} 6. c4 {[%clk 0:03:02.9]} 6... c6 {[%clk 0:03:01.4]}
7. Qa4 {[%clk 0:03:02.5]} 7... Nfd7 {[%clk 0:02:56.3]} 8. cxd5 {[%clk 0:03:02]}
8... Nb6 {[%clk 0:02:56.1]} 9. Qb3 {[%clk 0:02:56.5]} 9... cxd5 {[%clk
0:02:56.5]} 10. Nc3 {[%clk 0:02:55.7]} 10... Nc6 {[%clk 0:02:56]} 11. Bf4 {[%clk
0:02:56.2]} 11... Bg4 {[%clk 0:02:52.9]} 12. e3 {[%clk 0:02:48.5]} 12... Bxf3
{[%clk 0:02:50]} 13. Bxf3 {[%clk 0:02:48.2]} 13... e6 {[%clk 0:02:50.9]} 14. Nb5
{[%clk 0:02:44.5]} 14... Qd7 {[%clk 0:02:43.4]} 15. Be2 {[%clk 0:02:32.3]} 15...
Na5 {[%clk 0:02:37.4]} 16. Qb4 {[%clk 0:02:29.2]} 16... Nbc4 {[%clk 0:02:11.8]}
17. b3 {[%clk 0:02:15.4]} 17... Nc6 {[%clk 0:02:11.5]} 18. Qa4 {[%clk
0:02:06.3]} 18... Nb6 {[%clk 0:02:10]} 19. Qa3 {[%clk 0:02:06.8]} 19... Rfc8
{[%clk 0:02:07.6]} 20. Rac1 {[%clk 0:02:03.4]} 20... Bf8 {[%clk 0:02:07.2]} 21.
Qb2 {[%clk 0:01:52.7]} 21... a6 {[%clk 0:02:06.3]} 22. Nc3 {[%clk 0:01:50.3]}
22... h6 {[%clk 0:01:54.4]} 23. h4 {[%clk 0:01:47.5]} 23... Qd8 {[%clk
0:01:46.8]} 24. e4 {[%clk 0:01:25.8]} 24... Nxd4 {[%clk 0:01:38.9]} 25. Rfd1
{[%clk 0:01:25.6]} 25... Bg7 {[%clk 0:01:30.2]} 26. e5 {[%clk 0:01:19.7]} 26...
Nxe2+ {[%clk 0:01:28.7]} 27. Qxe2 {[%clk 0:01:14.7]} 27... Qe7 {[%clk
0:01:24.4]} 28. h5 {[%clk 0:01:07.5]} 28... g5 {[%clk 0:01:23.9]} 29. Be3 {[%clk
0:01:07.5]} 29... Nd7 {[%clk 0:01:23.8]} 30. Bd4 {[%clk 0:01:07.4]} 30... Rc6
{[%clk 0:01:21.5]} 31. f4 {[%clk 0:01:05.5]} 31... Rac8 {[%clk 0:01:20.5]} 32.
Kg2 {[%clk 0:01:01.6]} 32... b5 {[%clk 0:01:19.3]} 33. Qd2 {[%clk 0:00:54.7]}
33... gxf4 {[%clk 0:01:16.5]} 34. gxf4 {[%clk 0:00:54.3]} 34... Qh4 {[%clk
0:01:16.2]} 35. Ne2 {[%clk 0:00:54.2]} 35... Qxh5 {[%clk 0:01:11.3]} 36. Rxc6
{[%clk 0:00:47.7]} 36... Rxc6 {[%clk 0:01:10.9]} 37. Ng3 {[%clk 0:00:47.2]}
37... Qg6 {[%clk 0:01:08]} 38. Rc1 {[%clk 0:00:46.7]} 38... Rxc1 {[%clk
0:01:04.2]} 39. Qxc1 {[%clk 0:00:47.6]} 39... Qd3 {[%clk 0:01:02.7]} 40. Qc8+
{[%clk 0:00:35.8]} 40... Nf8 {[%clk 0:01:02.7]} 41. Bc5 {[%clk 0:00:36.3]} 41...
Qd2+ {[%clk 0:01:00.9]} 42. Kf3 {[%clk 0:00:35]} 42... d4 {[%clk 0:00:45.5]} 43.
f5 {[%clk 0:00:20.5]} 43... Qe3+ {[%clk 0:00:42.6]} 44. Kg4 {[%clk 0:00:19.4]}
44... Qxe5 {[%clk 0:00:40.3]} 45. Bxf8 {[%clk 0:00:16.7]} 45... Bxf8 {[%clk
0:00:38.9]} 46. fxe6 {[%clk 0:00:15.5]} 46... Qxe6+ {[%clk 0:00:37.3]} 47. Qxe6
{[%clk 0:00:16.1]} 47... fxe6 {[%clk 0:00:38.2]} 48. Kf4 {[%clk 0:00:15.2]}
48... Bd6+ {[%clk 0:00:38.3]} 0-1

[Event "*** SCC Grand Prix: Titled Tuesday Blitz"]
[Site "Chess.com"]
[Date "2020.06.23"]
[Round "3"]
[White "mjray79"]
[Black "akashcheck"]
[Result "1-0"]
[WhiteElo "2253"]
[BlackElo "2219"]
[TimeControl "180+1"]
[EndTime "10:28:59 PDT"]
[Termination "mjray79 won by resignation"]

1. d4 {[%clk 0:03:00.9]} 1... d5 {[%clk 0:02:59.8]} 2. c4 {[%clk 0:03:00.8]}
2... c6 {[%clk 0:03:00.1]} 3. Nf3 {[%clk 0:03:01]} 3... Nf6 {[%clk 0:03:00.5]}
4. Nc3 {[%clk 0:03:01.2]} 4... dxc4 {[%clk 0:03:00.2]} 5. a4 {[%clk 0:03:01.2]}
5... Bf5 {[%clk 0:03:00.4]} 6. Ne5 {[%clk 0:03:01.5]} 6... Nbd7 {[%clk
0:02:57.7]} 7. Nxc4 {[%clk 0:03:00.9]} 7... Qc7 {[%clk 0:02:58]} 8. g3 {[%clk
0:03:00.3]} 8... e5 {[%clk 0:02:58.3]} 9. dxe5 {[%clk 0:03:00.3]} 9... Nxe5
{[%clk 0:02:59.2]} 10. Bf4 {[%clk 0:03:00.2]} 10... Nfd7 {[%clk 0:02:58.6]} 11.
Bg2 {[%clk 0:02:56.3]} 11... f6 {[%clk 0:02:57.8]} 12. O-O {[%clk 0:02:53.9]}
12... Rd8 {[%clk 0:02:55.8]} 13. e4 {[%clk 0:02:33.6]} 13... Be6 {[%clk
0:02:48.9]} 14. Ne3 {[%clk 0:02:23.9]} 14... Nc5 {[%clk 0:02:37.9]} 15. Qe2
{[%clk 0:02:20.8]} 15... Be7 {[%clk 0:02:20.4]} 16. Rac1 {[%clk 0:02:07.9]}
16... Ncd3 {[%clk 0:01:46]} 17. Bxe5 {[%clk 0:02:06.5]} 17... Nxe5 {[%clk
0:01:27.5]} 18. Ncd5 {[%clk 0:02:03.1]} 18... Qb8 {[%clk 0:01:09.6]} 19. Nxe7
{[%clk 0:02:00.6]} 19... Kxe7 {[%clk 0:01:10.5]} 20. Nf5+ {[%clk 0:02:00.2]}
20... Kf7 {[%clk 0:00:56.4]} 21. Rfd1 {[%clk 0:01:43.5]} 21... Rxd1+ {[%clk
0:00:53.2]} 22. Rxd1 {[%clk 0:01:41.9]} 22... Rd8 {[%clk 0:00:39.8]} 23. f4
{[%clk 0:01:24.7]} 23... Ng6 {[%clk 0:00:25.2]} 24. Nd4 {[%clk 0:01:15.6]} 24...
Ne7 {[%clk 0:00:07.5]} 25. Nxe6 {[%clk 0:01:09.6]} 25... Rxd1+ {[%clk
0:00:05.2]} 26. Qxd1 {[%clk 0:01:10.5]} 26... Kxe6 {[%clk 0:00:05.5]} 27. Qb3+
{[%clk 0:01:00.5]} 27... Kd7 {[%clk 0:00:05.5]} 28. Bh3+ {[%clk 0:00:57.8]}
28... Ke8 {[%clk 0:00:05]} 29. Qd3 {[%clk 0:00:47.4]} 29... Qc7 {[%clk
0:00:04.8]} 30. Be6 {[%clk 0:00:43.2]} 30... Kf8 {[%clk 0:00:03.6]} 31. e5
{[%clk 0:00:39.4]} 31... fxe5 {[%clk 0:00:01.5]} 32. Qxh7 {[%clk 0:00:34.3]}
32... Nd5 {[%clk 0:00:01.3]} 33. Qg8+ {[%clk 0:00:32.2]} 33... Ke7 {[%clk
0:00:01.9]} 34. Bxd5 {[%clk 0:00:24.8]} 34... cxd5 {[%clk 0:00:01.6]} 35. Qxg7+
{[%clk 0:00:23.8]} 35... Kd6 {[%clk 0:00:01.8]} 36. Qxe5+ {[%clk 0:00:23.4]}
36... Kc6 {[%clk 0:00:02.1]} 37. Qxc7+ {[%clk 0:00:24.3]} 37... Kxc7 {[%clk
0:00:03]} 38. h4 {[%clk 0:00:24.9]} 38... Kd6 {[%clk 0:00:03.6]} 39. h5 {[%clk
0:00:24.5]} 39... d4 {[%clk 0:00:04.3]} 40. Kf2 {[%clk 0:00:24.4]} 40... Ke6
{[%clk 0:00:04.8]} 41. Ke2 {[%clk 0:00:24.4]} 1-0

[Event "*** SCC Grand Prix: Titled Tuesday Blitz"]
[Site "Chess.com"]
[Date "2020.06.23"]
[Round "3"]
[White "Chessmasterzt"]
[Black "MathiasWomacka"]
[Result "0-1"]
[WhiteElo "2596"]
[BlackElo "2418"]
[TimeControl "180+1"]
[EndTime "10:29:00 PDT"]
[Termination "MathiasWomacka won by resignation"]

1. Nf3 {[%clk 0:03:00.9]} 1... c5 {[%clk 0:02:59.6]} 2. e4 {[%clk 0:02:59.4]}
2... d6 {[%clk 0:02:59.4]} 3. d4 {[%clk 0:02:45.2]} 3... cxd4 {[%clk 0:03:00.3]}
4. Qxd4 {[%clk 0:02:45.5]} 4... Nc6 {[%clk 0:02:59.6]} 5. Bb5 {[%clk 0:02:45.7]}
5... Bd7 {[%clk 0:03:00.2]} 6. Bxc6 {[%clk 0:02:46.2]} 6... Bxc6 {[%clk
0:03:01.1]} 7. Nc3 {[%clk 0:02:46.1]} 7... Nf6 {[%clk 0:03:01.7]} 8. Bg5 {[%clk
0:02:44.7]} 8... e6 {[%clk 0:03:02.2]} 9. Qd3 {[%clk 0:02:44.8]} 9... Be7 {[%clk
0:03:01.4]} 10. Nd4 {[%clk 0:02:42.5]} 10... Qa5 {[%clk 0:02:46.1]} 11. Bd2
{[%clk 0:02:36.7]} 11... Qc7 {[%clk 0:02:43.4]} 12. O-O-O {[%clk 0:02:26.5]}
12... O-O {[%clk 0:02:42.5]} 13. f4 {[%clk 0:02:19.6]} 13... Rfc8 {[%clk
0:02:37.7]} 14. Kb1 {[%clk 0:02:11.1]} 14... b5 {[%clk 0:02:23.5]} 15. e5 {[%clk
0:01:22.7]} 15... dxe5 {[%clk 0:02:19.6]} 16. Nxc6 {[%clk 0:01:22.9]} 16... Qxc6
{[%clk 0:02:16.1]} 17. fxe5 {[%clk 0:01:23.1]} 17... Nd7 {[%clk 0:01:55.3]} 18.
Bf4 {[%clk 0:01:08.7]} 18... Nc5 {[%clk 0:01:13.8]} 19. Qxb5 {[%clk 0:00:52.5]}
19... Qxg2 {[%clk 0:01:13.4]} 20. Rhg1 {[%clk 0:00:51.5]} 20... Qf3 {[%clk
0:00:45.2]} 21. Bh6 {[%clk 0:00:49.8]} 21... g6 {[%clk 0:00:41]} 22. Rg3 {[%clk
0:00:21.3]} 22... Qh5 {[%clk 0:00:40.6]} 23. Bc1 {[%clk 0:00:16]} 23... Rab8
{[%clk 0:00:40.1]} 24. Qe2 {[%clk 0:00:14.2]} 24... Qxe2 {[%clk 0:00:32]} 25.
Nxe2 {[%clk 0:00:15.1]} 25... Rd8 {[%clk 0:00:25.6]} 26. Rgg1 {[%clk 0:00:10.2]}
26... Ne4 {[%clk 0:00:17.2]} 27. c3 {[%clk 0:00:06.9]} 27... Bc5 {[%clk
0:00:16.8]} 28. Rgf1 {[%clk 0:00:06.6]} 28... Nf2 {[%clk 0:00:14.6]} 29. Rxd8+
{[%clk 0:00:06.9]} 29... Rxd8 {[%clk 0:00:15.5]} 30. Kc2 {[%clk 0:00:07.2]}
30... Ng4 {[%clk 0:00:12.6]} 31. Bf4 {[%clk 0:00:05.1]} 31... Ne3+ {[%clk
0:00:12]} 32. Bxe3 {[%clk 0:00:05.5]} 32... Bxe3 {[%clk 0:00:12.9]} 33. Rf3
{[%clk 0:00:04.8]} 33... Rd2+ {[%clk 0:00:11.9]} 34. Kb3 {[%clk 0:00:05.1]}
34... Rxe2 {[%clk 0:00:12.8]} 35. c4 {[%clk 0:00:05.7]} 35... Bd4 {[%clk
0:00:12.3]} 36. Rd3 {[%clk 0:00:05.1]} 36... Bxe5 {[%clk 0:00:11.9]} 37. c5
{[%clk 0:00:06]} 37... Rxb2+ {[%clk 0:00:11.3]} 0-1

[Event "*** SCC Grand Prix: Titled Tuesday Blitz"]
[Site "Chess.com"]
[Date "2020.06.23"]
[Round "3"]
[White "vovachesss"]
[Black "stolencandy13"]
[Result "0-1"]
[WhiteElo "2596"]
[BlackElo "2418"]
[TimeControl "180+1"]
[EndTime "10:29:00 PDT"]
[Termination "stolencandy13 won by resignation"]

1. e4 {[%clk 0:03:00.9]} 1... c6 {[%clk 0:02:54]} 2. d4 {[%clk 0:02:58.8]} 2...
d5 {[%clk 0:02:54.9]} 3. e5 {[%clk 0:02:58.7]} 3... Bf5 {[%clk 0:02:54.7]} 4. h4
{[%clk 0:02:54.8]} 4... h5 {[%clk 0:02:54.1]} 5. c4 {[%clk 0:02:52]} 5... e6
{[%clk 0:02:54.1]} 6. Nc3 {[%clk 0:02:52.1]} 6... Ne7 {[%clk 0:02:50.3]} 7. Nge2
{[%clk 0:02:44.2]} 7... Nd7 {[%clk 0:02:44.9]} 8. Ng3 {[%clk 0:02:44.2]} 8...
Bg6 {[%clk 0:02:40]} 9. Bg5 {[%clk 0:02:44.2]} 9... dxc4 {[%clk 0:02:32.9]} 10.
Nge4 {[%clk 0:02:44.1]} 10... Qb6 {[%clk 0:02:13.6]} 11. Nd6+ {[%clk 0:02:43.4]}
11... Kd8 {[%clk 0:02:13.5]} 12. Nxc4 {[%clk 0:02:04.6]} 12... Qc7 {[%clk
0:02:10.6]} 13. Bd3 {[%clk 0:02:04.6]} 13... f6 {[%clk 0:02:07.7]} 14. Bf4
{[%clk 0:01:56.2]} 14... Bxd3 {[%clk 0:02:04.2]} 15. Qxd3 {[%clk 0:01:54.3]}
15... Nd5 {[%clk 0:02:04.8]} 16. Bg3 {[%clk 0:01:45.8]} 16... f5 {[%clk
0:02:02.6]} 17. Rc1 {[%clk 0:01:27.8]} 17... N7b6 {[%clk 0:02:02.6]} 18. Nxb6
{[%clk 0:01:11.9]} 18... Qxb6 {[%clk 0:01:58.6]} 19. Nxd5 {[%clk 0:01:11.1]}
19... cxd5 {[%clk 0:01:55]} 20. O-O {[%clk 0:01:11]} 20... Be7 {[%clk
0:01:52.8]} 21. Rc2 {[%clk 0:01:01.4]} 21... Kd7 {[%clk 0:01:51.8]} 22. Rfc1
{[%clk 0:00:58]} 22... Rac8 {[%clk 0:01:52.2]} 23. a3 {[%clk 0:00:46.9]} 23...
a6 {[%clk 0:01:45.5]} 24. b4 {[%clk 0:00:45.2]} 24... Rxc2 {[%clk 0:01:39.7]}
25. Qxc2 {[%clk 0:00:42.4]} 25... g5 {[%clk 0:01:32.5]} 26. hxg5 {[%clk
0:00:29.4]} 26... Bxg5 {[%clk 0:01:29.9]} 27. f4 {[%clk 0:00:24.2]} 27... Be7
{[%clk 0:01:29.1]} 28. Bf2 {[%clk 0:00:19.9]} 28... h4 {[%clk 0:01:27.1]} 29.
Qd3 {[%clk 0:00:19.1]} 29... Qb5 {[%clk 0:01:24.4]} 30. Qc3 {[%clk 0:00:16.9]}
30... Qc6 {[%clk 0:01:22]} 31. Qd2 {[%clk 0:00:15.4]} 31... Qa4 {[%clk
0:01:20.3]} 32. Rc3 {[%clk 0:00:13.2]} 32... Rc8 {[%clk 0:01:17.1]} 33. Kh2
{[%clk 0:00:12.7]} 33... Rxc3 {[%clk 0:01:13]} 34. Qxc3 {[%clk 0:00:13.6]} 34...
Qd1 {[%clk 0:01:13.3]} 35. Qf3 {[%clk 0:00:13]} 35... Qxf3 {[%clk 0:00:54.9]}
36. gxf3 {[%clk 0:00:13.3]} 36... Kc6 {[%clk 0:00:55.5]} 37. Kh3 {[%clk
0:00:13.9]} 37... a5 {[%clk 0:00:39.8]} 38. Bxh4 {[%clk 0:00:05]} 38... axb4
{[%clk 0:00:37.4]} 39. Bxe7 {[%clk 0:00:04.5]} 39... b3 {[%clk 0:00:37.2]} 40.
Kh4 {[%clk 0:00:03.9]} 40... b2 {[%clk 0:00:38.1]} 41. Kg5 {[%clk 0:00:04.7]}
41... b1=Q {[%clk 0:00:39]} 42. Kf6 {[%clk 0:00:05.1]} 42... Kd7 {[%clk
0:00:38]} 43. Bc5 {[%clk 0:00:05]} 43... Qd3 {[%clk 0:00:37.4]} 44. a4 {[%clk
0:00:04.1]} 44... Qxf3 {[%clk 0:00:37.2]} 45. a5 {[%clk 0:00:04.8]} 45... Qh5
{[%clk 0:00:33.6]} 46. Bb6 {[%clk 0:00:05.7]} 46... Qe8 {[%clk 0:00:31.8]} 47.
Bc5 {[%clk 0:00:05.5]} 47... Qd8+ {[%clk 0:00:31.4]} 48. Kf7 {[%clk 0:00:06]}
48... Qxa5 {[%clk 0:00:31.7]} 49. Bd6 {[%clk 0:00:06.3]} 49... b5 {[%clk
0:00:31]} 50. Bc5 {[%clk 0:00:07.2]} 50... b4 {[%clk 0:00:31.1]} 51. Bxb4 {[%clk
0:00:07.5]} 51... Qxb4 {[%clk 0:00:32]} 0-1